bitfinex/quotes_SOLUSD_20230404
["timestamp","ask_amount","ask_price","bid_price","bid_amount"]
[1680606540353,33.28605367,20.869,20.851,55.44586067]
[1680606540553,33.28605367,20.869,20.857,7.24624739]
[1680606542056,33.28605367,20.869,20.851,20.0]
[1680606542446,33.28605367,20.869,20.852,20.0]
[1680606542954,33.28605367,20.869,20.854,20.0]
[1680606543247,33.28605367,20.869,20.855,20.0]
[1680606543441,33.28605367,20.869,20.855,55.68988516]
[1680606543861,33.28605367,20.869,20.856,24.24624739]
[1680606544041,33.28605367,20.869,20.856,72.68988516]
[1680606544244,33.28605367,20.869,20.857,7.24624739]
[1680606544452,33.28605367,20.869,20.858,17.0]
[1680606544656,33.28605367,20.869,20.859,20.0]
[1680606544868,33.28605367,20.869,20.86,17.0]
[1680606545160,33.28605367,20.869,20.861,20.0]
[1680606545335,33.28605367,20.869,20.861,27.24624739]
[1680606545761,33.28605367,20.869,20.862,24.24624739]
[1680606545950,33.28605367,20.869,20.863,20.0]
[1680606546257,33.28605367,20.869,20.864,17.0]
[1680606546467,33.28605367,20.869,20.865,20.0]
[1680606546646,33.28605367,20.869,20.866,17.0]
[1680606546958,33.28605367,20.869,20.866,7.24624739]
[1680606547158,33.28605367,20.869,20.867,48.44363777]
[1680606547456,33.28605367,20.869,20.856,7.24624739]
[1680606547755,33.28605367,20.869,20.861,55.68988516]
[1680606548146,33.28605367,20.869,20.862,7.24624739]
[1680606548654,33.28605367,20.869,20.863,20.0]
[1680606548858,33.28605367,20.869,20.856,55.44586067]
[1680606549059,33.28605367,20.869,20.857,20.0]
[1680606549360,33.28605367,20.869,20.853,20.0]
[1680606549653,33.28605367,20.869,20.851,20.0]
[1680606549855,33.28605367,20.869,20.853,42.58916721]
[1680606550360,33.28605367,20.869,20.854,17.0]
[1680606550559,20.0,20.877,20.851,20.0]
[1680606550762,20.0,20.888,20.851,20.0]
[1680606550950,20.0,20.886,20.86,43.99]
[1680606551151,117.7887,20.887,20.861,20.0]
[1680606551343,117.7887,20.887,20.862,5.51343677]
[1680606551544,117.7887,20.887,20.863,20.0]
[1680606551846,117.7887,20.887,20.864,20.0]
[1680606552043,117.7887,20.887,20.865,20.0]
[1680606552239,117.7887,20.887,20.866,17.0]
[1680606552442,117.7887,20.887,20.87,43.99]
[1680606552647,117.7887,20.887,20.871,37.0]
[1680606553044,1.0,20.919,20.88,43.66]
[1680606553259,1.0,20.919,20.89,43.99]
[1680606553461,1.0,20.919,20.891,37.0]
[1680606553840,1.0,20.919,20.891,204.65435599]
[1680606554048,1.0,20.919,20.892,79.20048282]
[1680606554345,1.0,20.919,20.879,6.62130977]
[1680606554346,5.39018701,20.918,20.883,76.02545992]
[1680606554849,20.0,20.909,20.871,20.0]
[1680606555049,20.0,20.909,20.88,43.99]
[1680606555848,20.0,20.909,20.88,118.87483617]
[1680606556047,25.39018701,20.909,20.88,118.58115017]
[1680606556249,25.39018701,20.909,20.88,118.28746417]
[1680606556453,25.39018701,20.909,20.881,17.0]
[1680606556949,108.9604,20.911,20.881,17.0]
[1680606556950,108.9604,20.911,20.89,43.99]
[1680606557147,108.9604,20.911,20.882,100.41432064]
[1680606557346,20.0,20.91,20.883,17.0]
[1680606557559,20.0,20.91,20.883,77.41432064]
[1680606557868,20.0,20.909,20.884,60.41432064]
[1680606558367,20.0,20.909,20.885,7.24624739]
[1680606558866,20.0,20.909,20.886,17.0]
[1680606559271,20.0,20.909,20.885,60.41432064]
[1680606559272,20.0,20.909,20.887,7.24624739]
[1680606560067,108.9604,20.911,20.89,40.7]
[1680606560378,108.9604,20.911,20.891,37.0]
[1680606560553,108.9604,20.911,20.891,173.98366792]
[1680606560873,108.9604,20.911,20.892,136.98366792]
[1680606561246,108.9604,20.911,20.893,63.10394842]
[1680606561450,108.9604,20.911,20.893,136.98366792]
[1680606561761,108.9604,20.911,20.895,20.0]
[1680606562069,117.5193,20.917,20.896,63.10394842]
[1680606562366,117.5193,20.917,20.896,73.8797195]
[1680606562551,4.61160619,20.916,20.88,14.21062265]
[1680606562742,40.82,20.91,20.87,40.88]
[1680606562947,27.47606483,20.909,20.86,40.88]
[1680606563247,40.82,20.89,20.858,30.0]
[1680606563447,20.0,20.888,20.858,30.0]
[1680606563646,20.0,20.887,20.854,33.286053]
[1680606563861,20.0,20.886,20.854,33.286053]
[1680606564155,37.0,20.885,20.854,40.53230039]
[1680606564647,20.0,20.885,20.854,40.53230039]
[1680606564853,225.869,20.889,20.855,20.0]
[1680606565061,225.869,20.889,20.855,76.10565911]
[1680606565252,225.869,20.889,20.856,11.62719348]
[1680606565456,225.869,20.889,20.856,67.73285259]
[1680606565648,225.869,20.889,20.858,20.0]
[1680606565873,225.869,20.889,20.859,20.0]
[1680606566049,225.869,20.889,20.859,89.00836934]
[1680606566375,225.869,20.889,20.861,7.27296247]
[1680606566690,20.0,20.899,20.863,20.0]
[1680606566857,137.6234,20.899,20.864,24.78481528]
[1680606567054,137.6234,20.899,20.865,20.0]
[1680606567381,137.6234,20.899,20.866,22.30234276]
[1680606567677,137.6234,20.899,20.866,80.3519065]
[1680606567876,17.0,20.898,20.867,63.3519065]
[1680606568084,17.0,20.898,20.868,17.0]
[1680606568374,17.0,20.898,20.868,63.3519065]
[1680606568569,17.0,20.898,20.869,7.24624739]
[1680606568764,20.0,20.897,20.869,63.3519065]
[1680606568957,20.0,20.897,20.87,76.10565911]
[1680606569160,20.0,20.897,20.87,83.3519065]
[1680606569464,20.0,20.897,20.871,63.3519065]
[1680606569669,20.0,20.897,20.872,20.0]
[1680606569865,20.0,20.897,20.872,27.24624739]
[1680606570071,20.0,20.897,20.872,20.0]
[1680606570268,17.0,20.896,20.863,20.0]
[1680606570467,20.0,20.895,20.867,56.10565911]
[1680606570669,20.0,20.895,20.868,20.0]
[1680606571180,20.0,20.895,20.869,7.24624739]
[1680606571380,20.0,20.895,20.87,37.0]
[1680606571674,20.0,20.895,20.87,20.0]
[1680606571675,20.0,20.893,20.87,20.0]
[1680606571877,20.0,20.893,20.871,7.24624739]
[1680606572280,17.0,20.892,20.872,20.0]
[1680606572681,20.0,20.891,20.873,7.24624739]
[1680606572971,37.0,20.89,20.862,133.75835025]
[1680606573177,155.7061,20.89,20.863,20.0]
[1680606573474,155.7061,20.89,20.863,7.24624739]
[1680606573475,196.2461,20.89,20.863,7.24624739]
[1680606573685,20.0,20.888,20.863,7.24624739]
[1680606573979,17.0,20.887,20.864,7.24624739]
[1680606574568,20.0,20.886,20.864,7.24624739]
[1680606576488,17.0,20.885,20.864,7.24624739]
[1680606577382,20.0,20.886,20.864,7.24624739]
[1680606578291,20.0,20.886,20.855,14.18460787]
[1680606578587,20.0,20.885,20.856,24.24624739]
[1680606578776,17.0,20.884,20.856,7.24624739]
[1680606578968,20.0,20.883,20.857,7.24624739]
[1680606579163,17.0,20.882,20.857,7.24624739]
[1680606579364,20.0,20.881,20.857,7.24624739]
[1680606579586,20.0,20.879,20.857,7.24624739]
[1680606580171,116.97,20.878,20.857,7.24624739]
[1680606580384,17.0,20.877,20.854,14.49411029]
[1680606580586,20.0,20.876,20.852,7.24624739]
[1680606580970,20.0,20.876,20.855,7.24624739]
[1680606583286,20.0,20.876,20.85,50.07871466]
[1680606583466,20.0,20.876,20.851,27.24624739]
[1680606583999,20.0,20.876,20.852,7.24624739]
[1680606584170,40.88,20.87,20.847,63.56259199]
[1680606584483,40.88,20.87,20.847,14.31155034]
[1680606584484,20.0,20.869,20.847,14.31155034]
[1680606584688,20.0,20.869,20.842,50.07871466]
[1680606584865,108.2524,20.868,20.842,50.07871466]
[1680606585068,108.2524,20.868,20.847,7.24624739]
[1680606585290,111.5602,20.867,20.847,7.24624739]
[1680606585584,20.0,20.866,20.847,7.24624739]
[1680606587574,111.5602,20.867,20.847,7.24624739]
[1680606587780,111.5602,20.867,20.848,20.0]
[1680606587969,20.0,20.866,20.848,37.0]
[1680606588171,20.0,20.866,20.849,7.24624739]
[1680606588483,20.0,20.866,20.85,20.0]
[1680606588882,20.0,20.866,20.851,7.24624739]
[1680606589294,20.0,20.866,20.852,20.0]
[1680606589469,111.5602,20.867,20.852,20.0]
[1680606589677,111.5602,20.867,20.86,20.0]
[1680606592793,20.0,20.866,20.853,7.24624739]
[1680606592974,20.0,20.866,20.854,20.0]
[1680606593697,20.0,20.866,20.854,27.24624739]
[1680606593989,111.5602,20.867,20.854,27.24624739]
[1680606594192,111.5602,20.867,20.855,17.0]
[1680606594691,111.5602,20.867,20.855,24.24624739]
[1680606595294,7.03003517,20.88,20.855,24.24624739]
[1680606595493,144.8,20.896,20.855,24.24624739]
[1680606595494,128.1571,20.877,20.855,24.24624739]
[1680606596569,128.1571,20.877,20.855,7.24624739]
[1680606598084,128.1571,20.877,20.856,17.0]
[1680606599097,128.1571,20.877,20.854,20.0]
[1680606599274,17.0,20.876,20.856,7.24624739]
[1680606599474,17.0,20.876,20.85,20.0]
[1680606599475,20.0,20.875,20.85,20.0]
[1680606599674,20.0,20.875,20.851,7.24624739]
[1680606599893,17.0,20.874,20.852,20.0]
[1680606600293,20.0,20.873,20.852,7.24624739]
[1680606600596,40.88,20.87,20.84,69.27171466]
[1680606600792,40.88,20.87,20.844,125.44264001]
[1680606601097,17.0,20.869,20.845,7.24624739]
[1680606601396,20.0,20.868,20.845,7.24624739]
[1680606602099,223.2256,20.867,20.845,7.24624739]
[1680606602395,20.0,20.866,20.845,7.24624739]
[1680606602599,20.0,20.866,20.844,14.05844001]
[1680606602780,20.0,20.866,20.835,114.1698]
[1680606602981,20.0,20.866,20.84,7.24624739]
[1680606603181,17.0,20.865,20.841,20.0]
[1680606603383,20.0,20.864,20.836,30.0]
[1680606603587,20.0,20.864,20.837,7.24624739]
[1680606603895,20.0,20.862,20.835,128.77963677]
[1680606604098,20.0,20.861,20.837,7.24624739]
[1680606604296,20.0,20.864,20.838,20.0]
[1680606604794,20.0,20.864,20.839,7.24624739]
[1680606605390,20.0,20.873,20.841,20.0]
[1680606605591,116.97,20.878,20.842,17.0]
[1680606605777,111.482,20.874,20.843,20.0]
[1680606605977,111.482,20.874,20.844,17.0]
[1680606606487,20.0,20.873,20.845,27.24624739]
[1680606606889,20.0,20.873,20.846,24.24624739]
[1680606607088,20.0,20.873,20.846,7.24624739]
[1680606607395,20.0,20.873,20.847,44.24624739]
[1680606607582,17.0,20.872,20.847,44.24624739]
[1680606607784,17.0,20.872,20.848,7.24624739]
[1680606608095,17.0,20.872,20.849,20.0]
[1680606608577,17.0,20.872,20.85,7.24624739]
[1680606608780,17.0,20.872,20.851,20.0]
[1680606609203,17.0,20.872,20.851,27.24624739]
[1680606609498,20.0,20.871,20.834,110.6871]
[1680606609703,17.0,20.87,20.841,30.0]
[1680606609881,20.0,20.869,20.842,7.24624739]
[1680606610202,20.0,20.867,20.842,7.24624739]
[1680606610400,17.0,20.866,20.842,7.24624739]
[1680606610707,17.0,20.866,20.852,20.0]
[1680606610880,112.3431,20.865,20.852,20.0]
[1680606611579,20.0,20.864,20.842,7.24624739]
[1680606611896,17.0,20.863,20.843,20.0]
[1680606612105,20.0,20.864,20.843,20.0]
[1680606612281,20.0,20.864,20.844,7.24624739]
[1680606612896,20.0,20.864,20.843,20.0]
[1680606613086,20.0,20.864,20.839,20.0]
[1680606613292,20.0,20.864,20.84,17.0]
[1680606613591,20.0,20.864,20.841,20.0]
[1680606613800,20.0,20.864,20.842,17.0]
[1680606614097,112.3431,20.865,20.843,20.0]
[1680606614299,20.0,20.864,20.844,17.0]
[1680606614484,20.0,20.864,20.844,24.24624739]
[1680606614683,20.0,20.864,20.845,7.24624739]
[1680606615293,20.0,20.864,20.843,20.0]
[1680606615496,20.0,20.864,20.839,20.0]
[1680606615687,20.0,20.864,20.84,17.0]
[1680606616003,20.0,20.864,20.841,20.0]
[1680606616204,20.0,20.862,20.841,27.24624739]
[1680606616499,20.0,20.862,20.837,115.1585]
[1680606616500,20.0,20.862,20.842,7.24624739]
[1680606616708,37.0,20.861,20.832,49.72915911]
[1680606617310,54.46,20.86,20.836,7.24624739]
[1680606617509,17.0,20.859,20.836,7.24624739]
[1680606618104,20.0,20.858,20.836,7.24624739]
[1680606618388,17.0,20.857,20.836,7.24624739]
[1680606619191,20.0,20.855,20.836,7.24624739]
[1680606619593,130.7783,20.867,20.836,7.24624739]
[1680606619787,116.97,20.878,20.84,54.49]
[1680606620004,118.5295,20.877,20.85,54.82]
[1680606620198,118.5295,20.877,20.851,20.0]
[1680606620503,20.0,20.876,20.852,17.0]
[1680606620706,20.0,20.876,20.852,24.24624739]
[1680606620889,20.0,20.876,20.853,27.24624739]
[1680606621092,118.5295,20.877,20.854,20.0]
[1680606621287,118.5295,20.877,20.86,54.49]
[1680606621702,118.5295,20.877,20.86,61.73624739]
[1680606622216,118.5295,20.877,20.86,50.97624739]
[1680606622415,116.97,20.878,20.86,50.97624739]
[1680606622717,116.97,20.878,20.861,20.0]
[1680606623216,118.0295,20.877,20.862,7.24624739]
[1680606623400,118.0295,20.877,20.863,37.0]
[1680606623802,118.0295,20.877,20.864,7.24624739]
[1680606624305,118.0295,20.877,20.863,20.0]
[1680606624511,118.0295,20.877,20.862,20.0]
[1680606624816,118.0295,20.877,20.864,7.24624739]
[1680606625521,116.97,20.878,20.864,7.24624739]
[1680606625721,24.246248,20.884,20.865,17.0]
[1680606625918,24.246248,20.884,20.864,7.24624739]
[1680606626107,24.246248,20.884,20.862,20.0]
[1680606626108,20.0,20.883,20.866,7.24624739]
[1680606626513,136.8963,20.883,20.866,7.24624739]
[1680606627600,116.8963,20.883,20.866,7.24624739]
[1680606627801,116.8963,20.883,20.867,17.0]
[1680606628000,116.8963,20.883,20.87,43.73]
[1680606628429,116.8963,20.883,20.87,50.97624739]
[1680606629919,116.8963,20.883,20.871,20.0]
[1680606630221,116.8963,20.883,20.872,7.24624739]
[1680606630402,116.8963,20.883,20.873,20.0]
[1680606630717,24.246248,20.884,20.873,27.24624739]
[1680606632029,108.7554,20.896,20.873,27.24624739]
[1680606632030,20.0,20.895,20.873,27.24624739]
[1680606634123,20.0,20.895,20.874,20.0]
[1680606634626,20.0,20.895,20.874,7.24624739]
[1680606635214,20.0,20.895,20.873,20.0]
[1680606635420,20.0,20.895,20.872,20.0]
[1680606635724,20.0,20.895,20.873,20.0]
[1680606636122,20.0,20.895,20.873,27.24624739]
[1680606636705,20.0,20.895,20.87,43.73]
[1680606636919,20.0,20.888,20.87,43.73]
[1680606637224,20.0,20.888,20.866,14.41547274]
[1680606637423,20.0,20.888,20.863,7.24624739]
[1680606637815,17.0,20.887,20.866,7.24624739]
[1680606638133,20.0,20.886,20.86,43.73]
[1680606638303,17.0,20.885,20.86,43.73]
[1680606638504,17.0,20.885,20.864,7.24624739]
[1680606638914,20.0,20.884,20.864,7.24624739]
[1680606639313,17.0,20.883,20.864,7.24624739]
[1680606639624,20.0,20.882,20.864,7.24624739]
[1680606639822,17.0,20.881,20.864,7.24624739]
[1680606640031,20.0,20.88,20.864,7.24624739]
[1680606640333,17.0,20.879,20.86,14.68139244]
[1680606640628,17.0,20.879,20.856,126.69824739]
[1680606640925,63.49,20.88,20.86,7.24624739]
[1680606642324,20.0,20.88,20.86,7.24624739]
[1680606642511,20.0,20.882,20.86,7.24624739]
[1680606642834,119.8895,20.886,20.861,17.0]
[1680606643031,119.8895,20.886,20.862,20.0]
[1680606643340,43.73,20.88,20.862,87.08411238]
[1680606643521,43.49,20.87,20.862,13.29646425]
[1680606643828,43.49,20.87,20.862,50.85395669]
[1680606644027,142.30066884,20.869,20.845,14.44708246]
[1680606644235,142.30066884,20.869,20.842,20.0]
[1680606644236,43.49,20.86,20.842,20.0]
[1680606644417,43.49,20.86,20.832,6.54714083]
[1680606644617,168.79066884,20.86,20.824,6.17964796]
[1680606644831,23.12006013,20.859,20.84,14.72931877]
[1680606645028,43.61,20.85,20.825,20.0]
[1680606645423,43.61,20.85,20.824,14.57090421]
[1680606645728,144.98103195,20.849,20.813,5.35713766]
[1680606645931,20.0,20.848,20.814,20.0]
[1680606646134,20.0,20.848,20.814,27.24624739]
[1680606646331,17.0,20.847,20.815,7.24624739]
[1680606646721,6.12006013,20.846,20.815,7.24624739]
[1680606647035,37.0,20.845,20.815,7.24624739]
[1680606647233,162.90196592,20.845,20.815,7.24624739]
[1680606647537,20.0,20.843,20.815,7.24624739]
[1680606647721,20.0,20.843,20.812,14.67670508]
[1680606647935,20.0,20.843,20.813,7.24624739]
[1680606648318,43.73,20.84,20.813,7.24624739]
[1680606648832,20.0,20.843,20.813,7.24624739]
[1680606649035,116.9892,20.842,20.814,20.0]
[1680606649432,116.9892,20.842,20.815,7.24624739]
[1680606649932,20.0,20.841,20.816,20.0]
[1680606650246,20.0,20.841,20.817,24.24624739]
[1680606650421,43.61,20.84,20.818,20.0]
[1680606650626,43.61,20.84,20.818,27.24624739]
[1680606650627,20.0,20.839,20.818,27.24624739]
[1680606650815,20.0,20.839,20.819,7.24624739]
[1680606651019,20.0,20.839,20.82,20.0]
[1680606651539,20.0,20.839,20.821,7.24624739]
[1680606651841,20.0,20.839,20.82,20.0]
[1680606652136,20.0,20.839,20.817,7.24624739]
[1680606652337,20.0,20.839,20.82,7.24624739]
[1680606652718,20.0,20.839,20.813,20.0]
[1680606652918,20.0,20.839,20.813,27.24624739]
[1680606653130,20.0,20.839,20.814,24.24624739]
[1680606653522,20.0,20.839,20.815,7.24624739]
[1680606654025,20.0,20.839,20.816,20.0]
[1680606654425,20.0,20.839,20.817,7.24624739]
[1680606654835,20.0,20.839,20.818,37.0]
[1680606655144,20.0,20.839,20.819,7.24624739]
[1680606655344,20.0,20.839,20.82,17.0]
[1680606655527,20.0,20.839,20.821,20.0]
[1680606655728,20.0,20.839,20.82,7.24624739]
[1680606655941,20.0,20.839,20.812,108.0168]
[1680606656134,20.0,20.839,20.813,20.0]
[1680606656529,20.0,20.839,20.813,27.24624739]
[1680606656729,137.7097,20.839,20.813,27.24624739]
[1680606656928,137.7097,20.839,20.814,7.24624739]
[1680606657335,117.7097,20.839,20.814,7.24624739]
[1680606657628,117.7097,20.839,20.816,20.0]
[1680606657831,43.61,20.84,20.817,17.0]
[1680606658030,43.61,20.84,20.818,20.0]
[1680606658226,43.61,20.84,20.819,17.0]
[1680606658443,43.61,20.84,20.82,20.0]
[1680606658647,20.0,20.839,20.821,17.0]
[1680606658841,43.61,20.84,20.821,24.24624739]
[1680606659141,43.61,20.84,20.822,27.24624739]
[1680606659345,43.61,20.84,20.823,17.0]
[1680606659552,43.61,20.84,20.822,27.24624739]
[1680606659846,20.0,20.839,20.823,17.0]
[1680606660527,20.0,20.839,20.822,20.0]
[1680606660737,20.0,20.839,20.816,20.0]
[1680606660941,20.0,20.839,20.815,7.24624739]
[1680606661142,20.0,20.839,20.813,20.0]
[1680606661646,20.0,20.839,20.813,27.24624739]
[1680606661831,20.0,20.839,20.813,7.24624739]
[1680606662031,43.49,20.83,20.813,7.24624739]
[1680606662337,20.0,20.839,20.786,158.47777585]
[1680606662338,43.73,20.82,20.786,158.47777585]
[1680606662552,43.73,20.82,20.79,30.0]
[1680606662854,43.73,20.81,20.779,108.5044]
[1680606663147,43.73,20.81,20.781,20.0]
[1680606664047,20.0,20.809,20.781,4.70197761]
[1680606664643,20.0,20.809,20.782,7.24624739]
[1680606665435,20.0,20.809,20.783,20.0]
[1680606665743,20.0,20.809,20.784,7.24624739]
[1680606667247,20.0,20.809,20.771,11.9994845]
[1680606667440,17.0,20.808,20.771,11.9994845]
[1680606667638,20.0,20.807,20.773,7.24624739]
[1680606667957,20.0,20.807,20.775,5.44327282]
[1680606668141,112.4439,20.806,20.776,20.0]
[1680606668342,112.4439,20.806,20.776,27.24624739]
[1680606668553,20.0,20.805,20.777,7.24624739]
[1680606668734,20.0,20.805,20.778,37.0]
[1680606669136,20.0,20.805,20.779,7.24624739]
[1680606669344,20.0,20.805,20.78,17.0]
[1680606669542,20.0,20.805,20.781,20.0]
[1680606671234,20.0,20.805,20.784,20.0]
[1680606671640,20.0,20.805,20.784,27.24624739]
[1680606671931,112.4439,20.806,20.784,27.24624739]
[1680606672132,19.195,20.838,20.785,23.32008752]
[1680606672349,109.496,20.818,20.785,23.32008752]
[1680606672647,20.0,20.817,20.787,26.44818846]
[1680606672853,20.0,20.817,20.788,37.0]
[1680606673153,20.0,20.817,20.791,7.05889566]
[1680606673355,20.0,20.817,20.792,17.0]
[1680606673652,43.73,20.83,20.792,17.0]
[1680606673653,20.0,20.822,20.795,6.98943209]
[1680606673830,20.0,20.822,20.796,17.0]
[1680606674035,20.0,20.822,20.797,20.0]
[1680606674249,20.0,20.822,20.798,17.0]
[1680606674441,20.0,20.822,20.799,20.0]
[1680606674645,20.0,20.828,20.8,60.73]
[1680606674847,109.496,20.829,20.802,7.19010749]
[1680606675053,43.73,20.84,20.804,7.20420107]
[1680606675237,43.73,20.84,20.805,20.0]
[1680606675552,20.0,20.839,20.806,24.24624739]
[1680606675727,20.0,20.839,20.807,20.0]
[1680606675931,20.0,20.839,20.808,17.0]
[1680606676448,20.0,20.839,20.809,20.0]
[1680606676651,20.0,20.839,20.81,17.0]
[1680606677039,20.0,20.839,20.811,20.0]
[1680606677240,20.0,20.839,20.812,17.0]
[1680606677444,20.0,20.837,20.813,20.0]
[1680606677642,43.49,20.83,20.811,20.0]
[1680606678252,43.49,20.83,20.809,20.0]
[1680606678452,20.0,20.828,20.8,43.73]
[1680606678629,20.0,20.828,20.801,20.0]
[1680606678833,111.8775,20.827,20.795,7.24624739]
[1680606679250,17.0,20.826,20.795,7.24624739]
[1680606679455,20.0,20.826,20.796,20.0]
[1680606679843,20.0,20.826,20.797,7.24624739]
[1680606680448,20.0,20.826,20.797,12.21905224]
[1680606680638,20.0,20.826,20.798,17.0]
[1680606680840,20.0,20.826,20.798,28.29388246]
[1680606681158,20.0,20.826,20.8,43.73]
[1680606681469,20.0,20.826,20.801,24.24624739]
[1680606681766,20.0,20.826,20.802,7.24624739]
[1680606682055,111.8775,20.827,20.803,37.0]
[1680606682446,20.0,20.826,20.804,7.24624739]
[1680606682850,20.0,20.826,20.805,20.0]
[1680606683055,20.0,20.826,20.803,20.0]
[1680606683455,20.0,20.824,20.801,20.0]
[1680606683962,20.0,20.824,20.801,27.24624739]
[1680606684259,20.0,20.824,20.802,7.24624739]
[1680606684464,20.0,20.837,20.81,43.66]
[1680606684674,114.6265,20.836,20.811,20.0]
[1680606684841,114.6265,20.836,20.812,17.0]
[1680606685036,114.6265,20.836,20.813,20.0]
[1680606685262,114.6265,20.836,20.814,17.0]
[1680606685555,20.0,20.835,20.815,20.0]
[1680606685759,20.0,20.835,20.816,17.0]
[1680606685951,114.6265,20.836,20.816,17.0]
[1680606686152,114.6265,20.836,20.814,17.0]
[1680606686356,20.0,20.835,20.814,17.0]
[1680606686555,20.0,20.835,20.815,20.0]
[1680606686862,20.0,20.835,20.816,17.0]
[1680606687245,114.6265,20.836,20.816,17.0]
[1680606687444,20.0,20.835,20.816,17.0]
[1680606687643,114.6265,20.836,20.816,17.0]
[1680606688055,114.6265,20.836,20.815,20.0]
[1680606688361,114.6265,20.836,20.814,20.0]
[1680606688557,114.6265,20.836,20.815,20.0]
[1680606689147,114.6265,20.836,20.813,20.0]
[1680606689347,20.0,20.835,20.812,20.0]
[1680606690349,114.6265,20.836,20.813,17.0]
[1680606690553,114.6265,20.836,20.814,20.0]
[1680606690749,114.6265,20.836,20.815,17.0]
[1680606691153,114.6265,20.836,20.814,20.0]
[1680606691355,20.0,20.834,20.812,20.0]
[1680606691559,20.0,20.834,20.811,20.0]
[1680606691762,20.0,20.834,20.81,14.22210164]
[1680606691952,20.0,20.834,20.801,119.6323]
[1680606691953,37.0,20.833,20.8,43.73]
[1680606692263,20.0,20.832,20.803,7.24624739]
[1680606692455,37.0,20.831,20.804,20.0]
[1680606692954,43.73,20.83,20.804,20.0]
[1680606693165,17.0,20.829,20.804,20.0]
[1680606693462,20.0,20.828,20.801,20.0]
[1680606693665,17.0,20.827,20.796,7.24624739]
[1680606693870,17.0,20.827,20.801,7.24624739]
[1680606694371,20.0,20.826,20.801,7.24624739]
[1680606694550,17.0,20.825,20.801,7.24624739]
[1680606694866,133.8078,20.825,20.801,7.24624739]
[1680606695168,20.0,20.824,20.801,7.24624739]
[1680606695668,20.0,20.824,20.802,20.0]
[1680606695868,20.0,20.824,20.803,17.0]
[1680606696070,20.0,20.824,20.804,20.0]
[1680606696248,20.0,20.824,20.805,17.0]
[1680606697370,116.8078,20.825,20.806,7.24624739]
[1680606697562,116.8078,20.825,20.807,17.0]
[1680606698073,116.8078,20.825,20.808,7.24624739]
[1680606698249,20.0,20.839,20.809,17.0]
[1680606698459,20.0,20.839,20.81,20.0]
[1680606698460,117.0001,20.83,20.81,20.0]
[1680606698762,117.0001,20.83,20.811,17.0]
[1680606698963,117.0001,20.83,20.812,20.0]
[1680606699262,20.0,20.829,20.813,17.0]
[1680606699466,20.0,20.829,20.814,20.0]
[1680606700666,20.0,20.829,20.811,20.0]
[1680606701268,117.0001,20.83,20.811,27.24624739]
[1680606701456,20.0,20.829,20.811,27.24624739]
[1680606701954,20.0,20.829,20.812,17.0]
[1680606702159,20.0,20.829,20.813,20.0]
[1680606702365,20.0,20.829,20.814,17.0]
[1680606702568,20.0,20.829,20.815,20.0]